bitfinex-derivatives/quotes_SOLF0:USTF0_20251219
["timestamp","ask_amount","ask_price","bid_price","bid_amount"]
[1766104538381,0.06227062,118.73,118.66,16.84]
[1766104538677,16.2,118.77,118.67,16.84]
[1766104538877,16.2,118.77,118.69,16.84]
[1766104539074,16.2,118.77,118.71,24.4255]
[1766104539376,7.5811,118.79,118.72,16.84]
[1766104539677,0.05831145,118.77,118.74,0.05525978]
[1766104546169,0.05831145,118.77,118.74,7.63895978]
[1766104546371,16.2,118.8,118.74,23.83895978]
[1766104547179,16.2,118.8,118.74,16.25525978]
[1766104547380,0.00418801,118.78,118.74,134.22265978]
[1766104547679,15.62,118.84,118.75,16.2]
[1766104547871,15.62,118.84,118.77,16.2]
[1766104548470,0.06129247,118.82,118.79,0.06162038]
[1766104550770,0.00129247,118.82,118.79,16.26162038]
[1766104550975,15.14,118.85,118.79,16.26162038]
[1766104551873,0.06449718,118.83,118.79,16.26162038]
[1766104552073,0.06449718,118.83,118.79,0.06162038]
[1766104556189,14.56449718,118.83,118.79,0.00162038]
[1766104557285,7.5793,118.81,118.79,0.00162038]
[1766104559487,7.5786,118.82,118.79,0.00162038]
[1766104560290,13.95,118.81,118.74,16.2]
[1766104561389,0.05600857,118.79,118.76,0.05844614]
[1766104562885,13.95,118.81,118.76,0.05844614]
[1766104563075,13.95,118.81,118.76,15.32844614]
[1766104563789,0.06147688,118.8,118.76,15.32844614]
[1766104565889,0.06147688,118.8,118.76,0.05844614]
[1766104568592,0.06147688,118.8,118.76,15.32844614]
[1766104569589,0.06147688,118.8,118.76,22.91074614]
[1766104570794,0.06147688,118.8,118.76,15.32844614]
[1766104571398,0.06147688,118.8,118.76,22.91074614]
[1766104574804,0.06147688,118.8,118.76,15.32844614]
[1766104575103,12.17147688,118.8,118.71,14.04]
[1766104575402,12.06,118.78,118.69,14.04]
[1766104575797,12.06,118.77,118.69,14.04]
[1766104576000,0.05782863,118.74,118.72,0.05576395]
[1766104577099,12.06,118.77,118.72,0.05576395]
[1766104578214,11.88402207,118.76,118.68,54.74]
[1766104578405,11.83,118.76,118.68,54.74]
[1766104579213,0.05334984,118.73,118.71,0.05356343]
[1766104579405,0.05956924,118.73,118.71,0.05356343]
[1766104579605,0.05956924,118.73,118.68,14.04]
[1766104580813,0.05956924,118.73,118.69,0.0644735]
[1766104581215,7.64396924,118.73,118.69,0.0644735]
[1766104581604,0.05956924,118.73,118.69,0.0644735]
[1766104581811,11.50956924,118.73,118.69,0.0644735]
[1766104582313,19.09396924,118.73,118.69,0.0644735]
[1766104588318,11.50956924,118.73,118.69,0.0644735]
[1766104589623,0.05956924,118.73,118.69,0.0644735]
[1766104589825,0.05956924,118.73,118.69,14.1044735]
[1766104590921,10.68,118.77,118.69,14.1044735]
[1766104591121,10.68,118.77,118.69,14.04]
[1766104591919,0.05667897,118.74,118.72,0.05713091]
[1766104594119,0.05667897,118.74,118.67,54.72]
[1766104594120,10.41667897,118.74,118.67,14.04]
[1766104595028,10.41667897,118.74,118.69,0.063811]
[1766104596227,18.00087897,118.74,118.69,0.063811]
[1766104599429,10.41667897,118.74,118.69,0.063811]
[1766104600431,0.05667897,118.74,118.69,14.103811]
[1766104602730,17.35037897,118.74,118.69,0.063811]
[1766104603225,9.76667897,118.74,118.69,0.063811]
[1766104606032,0.05667897,118.74,118.69,12.533811]
[1766104607630,0.05667897,118.74,118.69,20.120611]
[1766104607825,0.05667897,118.74,118.7,12.47]
[1766104608425,16.94047897,118.74,118.69,0.063811]
[1766104609132,16.94047897,118.74,118.69,12.533811]
[1766104610231,9.35667897,118.74,118.69,12.533811]
[1766104614142,16.94037897,118.74,118.69,12.533811]
[1766104614542,9.35667897,118.74,118.69,12.533811]
[1766104615442,9.35667897,118.74,118.69,0.003811]
[1766104616535,16.3245,118.73,118.69,0.003811]
[1766104617336,8.74,118.73,118.69,0.003811]
[1766104617536,0.05667897,118.74,118.69,12.473811]
[1766104619342,0.05667897,118.74,118.7,20.056]
[1766104619545,8.62,118.77,118.71,12.47]
[1766104619746,14.4085389,118.77,118.71,12.47]
[1766104619941,14.3485389,118.79,118.71,12.47]
[1766104620145,14.3485389,118.78,118.71,12.47]
[1766104620347,5.7885389,118.77,118.71,12.47]
[1766104620550,0.06483539,118.75,118.73,0.05431417]
[1766104620937,1.1071253,118.81,118.74,12.47]
[1766104621246,8.56,118.85,118.79,12.47]
[1766104621548,8.56,118.85,118.76,12.47]
[1766104621949,0.06119098,118.82,118.79,0.05798996]
[1766104622444,0.00119098,118.82,118.79,12.02798996]
[1766104622646,7.5765,118.86,118.79,12.02798996]
[1766104623751,0.06129604,118.84,118.79,12.02798996]
[1766104625443,0.06129604,118.84,118.79,19.60828996]
[1766104625642,0.06129604,118.84,118.8,11.97]
[1766104627248,0.06129604,118.84,118.8,19.5497]
[1766104627453,0.06129604,118.84,118.81,11.97]
[1766104627756,0.00129604,118.84,118.81,11.97]
[1766104627957,16.0855,118.87,118.81,11.97]
[1766104628852,0.06416809,118.85,118.83,0.05590904]
[1766104638862,7.72416809,118.85,118.77,11.58]
[1766104639062,7.66,118.83,118.73,11.58]
[1766104639258,7.66,118.82,118.73,11.58]
[1766104639457,7.66,118.82,118.72,54.54]
[1766104639458,7.66,118.82,118.75,11.58]
[1766104639861,0.06209981,118.8,118.77,0.06324022]
[1766104641469,0.06209981,118.8,118.77,11.64324022]
[1766104643766,0.06209981,118.8,118.73,11.58]
[1766104643767,7.55209981,118.8,118.73,11.58]
[1766104643963,7.39,118.79,118.67,118.0303]
[1766104644169,7.5825,118.76,118.69,11.58]
[1766104644564,14.9725,118.76,118.69,11.58]
[1766104644765,0.06434455,118.74,118.71,0.05470687]
[1766104647674,7.32434455,118.74,118.71,0.00470687]
[1766104647971,7.32434455,118.74,118.67,11.58]
[1766104648167,7.5844,118.73,118.67,11.58]
[1766104648473,7.17,118.73,118.67,11.58]
[1766104648868,7.18467955,118.71,118.64,1.46628184]
[1766104649064,7.18467955,118.71,118.64,13.04628184]
[1766104649277,7.18467955,118.71,118.64,11.58]
[1766104649869,7.18467955,118.71,118.66,0.06441745]
[1766104650572,14.77037955,118.71,118.66,0.06441745]
[1766104651770,7.5864,118.7,118.66,0.06441745]
[1766104652571,14.5464,118.7,118.66,0.06441745]
[1766104653575,21.38648364,118.7,118.66,0.06441745]
[1766104653769,21.38648364,118.7,118.62,13.04665262]
[1766104653770,6.92,118.69,118.62,13.04665262]
[1766104654771,0.05918361,118.67,118.64,0.0248217]
[1766104657085,6.72,118.71,118.64,11.6048217]
[1766104657284,6.72,118.71,118.64,11.58]
[1766104658282,6.72,118.71,118.66,0.05956465]
[1766104658283,0.05373834,118.69,118.66,0.05956465]
[1766104661175,13.47282992,118.73,118.67,11.58]
[1766104661375,6.64,118.73,118.67,11.58]
[1766104662272,0.06479617,118.71,118.69,0.06136244]
[1766104664580,6.57,118.75,118.69,11.74136244]
[1766104665287,14.1531,118.75,118.69,11.74136244]
[1766104665587,0.05654368,118.73,118.69,11.74136244]
[1766104667377,0.05654368,118.73,118.69,0.06136244]
[1766104667577,6.59654368,118.73,118.69,0.06136244]
[1766104668277,6.5,118.72,118.64,11.68]
[1766104668886,6.41,118.71,118.64,11.68]
[1766104669092,6.41,118.71,118.62,1.46665262]
[1766104669093,6.41,118.71,118.62,13.14665262]
[1766104669390,0.0610783,118.68,118.65,0.05772514]
[1766104672995,0.0010783,118.68,118.65,11.73772514]
[1766104674197,0.0010783,118.68,118.65,19.32722514]
[1766104674890,6.83282992,118.73,118.68,11.68]
[1766104675089,6.83282992,118.74,118.68,11.68]
[1766104675289,6.83282992,118.73,118.68,11.68]
[1766104675498,6.83282992,118.74,118.68,11.68]
[1766104675696,6.83282992,118.73,118.68,11.68]
[1766104675887,0.05744885,118.72,118.7,0.05424447]
[1766104678493,13.01430373,118.72,118.66,66.18]
[1766104678693,6.20744885,118.72,118.66,11.68]
[1766104679197,6.80959126,118.71,118.66,11.68]
[1766104679395,6.20744885,118.72,118.67,0.0641949]
[1766104679697,6.81037665,118.71,118.67,0.0641949]
[1766104679897,13.79254885,118.72,118.67,0.0641949]
[1766104680100,6.81038236,118.71,118.67,0.0641949]
[1766104680294,13.79254885,118.72,118.67,0.0641949]
[1766104680495,6.81334092,118.71,118.67,0.0641949]
[1766104680695,6.81334092,118.7,118.67,0.0641949]
[1766104680996,13.79254885,118.72,118.67,0.0641949]
[1766104681191,6.81418594,118.71,118.67,0.0641949]
[1766104681395,6.20744885,118.72,118.67,0.0641949]
[1766104681396,7.5843,118.74,118.67,11.7441949]
[1766104681698,6.07,118.75,118.67,11.7441949]
[1766104681904,60.47,118.77,118.7,11.68]
[1766104682303,0.05860854,118.75,118.72,0.05336886]
[1766104684798,5.97,118.79,118.72,10.89336886]
[1766104685706,0.0565583,118.77,118.72,10.89336886]
[1766104686100,0.0565583,118.77,118.72,18.47826886]
[1766104689799,0.0565583,118.77,118.73,18.4243]
[1766104690196,0.0565583,118.77,118.73,10.84]
[1766104691105,7.6383583,118.77,118.72,0.05336886]
[1766104691518,0.0565583,118.77,118.72,0.05336886]
[1766104691807,0.0565583,118.77,118.72,10.89336886]
[1766104693302,6.64768371,118.76,118.72,10.89336886]
[1766104694318,6.64768371,118.76,118.72,0.05336886]
[1766104694507,6.64768371,118.75,118.72,0.05336886]
[1766104694702,0.0565583,118.77,118.72,11.51336886]
[1766104694703,6.64768371,118.76,118.72,11.51336886]
[1766104694910,0.0565583,118.77,118.72,11.51336886]
[1766104695107,6.64664828,118.76,118.72,11.51336886]
[1766104695306,6.64592416,118.76,118.72,11.51336886]
[1766104696309,6.70248246,118.77,118.72,11.51336886]
[1766104700315,130.39397828,118.82,118.73,11.46]
[1766104700516,6.64827538,118.81,118.74,11.46]
[1766104700711,12.50167828,118.82,118.74,11.46]
[1766104701307,12.50167828,118.82,118.77,0.06069288]
[1766104701507,0.06222226,118.79,118.77,0.06069288]
[1766104702620,11.43,118.84,118.77,11.52069288]
[1766104703622,0.06359668,118.82,118.77,11.52069288]
[1766104705920,11.43,118.89,118.8,11.46]
[1766104706429,11.43,118.89,118.81,19.0391]
[1766104706623,19.0043,118.89,118.81,19.0391]
[1766104706815,11.43,118.88,118.81,19.0391]
[1766104707013,0.05772892,118.86,118.84,0.0551436]
[1766104710621,11.48772892,118.86,118.79,19.04]
[1766104710821,11.43,118.86,118.79,19.04]
[1766104711522,11.43,118.86,118.8,11.46]
[1766104711725,0.05874539,118.84,118.82,0.05890704]
[1766104712426,11.48874539,118.84,118.77,11.46]
[1766104713427,11.48874539,118.84,118.79,0.06045209]
[1766104713626,19.06614539,118.84,118.79,0.06045209]
[1766104714734,19.0081,118.83,118.79,0.06045209]
[1766104716135,7.5804,118.8,118.74,11.46]
[1766104717334,0.05975501,118.78,118.76,0.05632735]
[1766104720536,0.05975501,118.78,118.72,11.46]
[1766104721438,0.05975501,118.78,118.74,0.05831379]
[1766104724238,6.45447712,118.78,118.74,0.05831379]
[1766104724641,0.05975501,118.78,118.74,0.05831379]
[1766104724848,18.35095501,118.78,118.74,0.05831379]
[1766104725142,24.74567712,118.78,118.74,0.05831379]
[1766104725332,18.35095501,118.78,118.74,0.05831379]
[1766104725529,24.74567712,118.78,118.74,0.05831379]
[1766104725729,18.35095501,118.78,118.74,0.05831379]
[1766104726029,24.74567712,118.78,118.74,0.05831379]
[1766104726228,18.35095501,118.78,118.74,0.05831379]
[1766104726435,24.74567712,118.78,118.74,0.05831379]
[1766104726639,18.35095501,118.78,118.74,0.05831379]
[1766104726844,24.74567712,118.78,118.74,0.05831379]
[1766104727032,18.35095501,118.78,118.74,0.05831379]
[1766104727236,24.74567712,118.78,118.74,0.05831379]
[1766104727436,18.35095501,118.78,118.74,0.05831379]
[1766104727636,24.74567712,118.78,118.74,0.05831379]
[1766104727936,18.35095501,118.78,118.74,0.05831379]
[1766104728140,6.45447712,118.78,118.74,0.05831379]
[1766104728344,0.05975501,118.78,118.74,0.05831379]
[1766104729638,0.05975501,118.78,118.74,11.15831379]
[1766104731045,6.39472211,118.81,118.75,11.1]
[1766104731242,17.10472211,118.81,118.75,11.1]
[1766104731950,0.061814,118.79,118.77,0.06159794]
[1766104732746,10.771814,118.79,118.72,18.6847]
[1766104732954,10.71,118.77,118.68,11.1]
[1766104733246,18.2931,118.75,118.68,11.1]
[1766104733652,0.05421665,118.73,118.7,0.06340633]
[1766104737549,0.05421665,118.73,118.7,7.64960633]
[1766104739050,0.05421665,118.73,118.7,0.06340633]
[1766104740449,18.2923,118.77,118.7,11.16340633]
[1766104740658,10.71,118.76,118.7,0.06340633]
[1766104741654,18.35502823,118.74,118.7,0.06340633]
[1766104742456,10.48,118.73,118.7,0.00340633]
[1766104742655,18.0645,118.73,118.66,10.56]
[1766104743256,18.0645,118.73,118.66,18.1485]
[1766104743454,18.0645,118.73,118.67,10.56]
[1766104743760,0.0539784,118.71,118.69,0.06215102]
[1766104749561,0.0539784,118.71,118.67,10.56]
[1766104749860,0.0539784,118.71,118.66,7.5885]
[1766104750560,0.0539784,118.71,118.67,0.05610491]
[1766104750952,10.5339784,118.71,118.67,0.05610491]
[1766104752554,18.1196784,118.71,118.67,0.05610491]
[1766104753465,10.46,118.7,118.63,11.19]
[1766104754367,10.46,118.7,118.64,18.7801]
[1766104754659,0.05781132,118.68,118.66,0.05331315]
[1766104765161,10.51781132,118.68,118.62,20.24765262]
[1766104765968,10.46,118.67,118.56,11.19]
[1766104766169,0.05515557,118.63,118.6,0.03301407]
[1766104766963,10.51515557,118.63,118.55,11.19]
[1766104767163,10.46,118.65,118.57,11.19]
[1766104767470,16.79259462,118.67,118.59,11.19]
[1766104767771,10.46,118.67,118.59,11.19]
[1766104768067,0.05620653,118.64,118.59,11.19]
[1766104768661,0.05620653,118.64,118.61,7.592]
[1766104772972,0.05620653,118.64,118.61,18.782]
[1766104773169,10.46,118.69,118.63,11.19]
[1766104773377,10.46,118.71,118.64,11.19]
[1766104774067,10.46,118.71,118.66,7.5888]
[1766104774274,0.06228612,118.69,118.66,7.64500653]
[1766104775770,0.06228612,118.69,118.66,0.05620653]
[1766104775970,0.06228612,118.69,118.66,54.31620653]
[1766104780468,0.06228612,118.69,118.66,54.29620653]
[1766104781966,0.06228612,118.69,118.66,61.88500653]
[1766104786371,0.06228612,118.69,118.66,0.05620653]
[1766104787572,6.40759006,118.69,118.66,0.05620653]
[1766104787775,0.06228612,118.69,118.66,0.05620653]
[1766104787971,6.40759006,118.69,118.66,0.05620653]
[1766104788273,0.06228612,118.69,118.66,0.05620653]
[1766104788475,6.40759006,118.69,118.66,0.05620653]
[1766104788678,0.06228612,118.69,118.66,0.05620653]
[1766104788878,6.40759006,118.69,118.66,0.05620653]
[1766104789079,0.06228612,118.69,118.66,0.05620653]
[1766104789277,6.40759006,118.69,118.66,0.05620653]
[1766104789577,0.06228612,118.69,118.66,0.05620653]
[1766104789778,6.40759006,118.69,118.66,0.05620653]
[1766104790078,0.06228612,118.69,118.66,0.05620653]
[1766104790277,6.40759006,118.69,118.66,0.05620653]
[1766104790480,0.06228612,118.69,118.66,0.05620653]
[1766104790678,6.40759006,118.69,118.66,0.05620653]
[1766104790879,0.06228612,118.69,118.66,0.05620653]
[1766104791080,6.40759006,118.69,118.66,0.05620653]
[1766104791377,0.06228612,118.69,118.66,0.05620653]
[1766104791582,6.40759006,118.69,118.66,0.05620653]
[1766104791887,10.32,118.66,118.59,10.06]
[1766104792173,6.34530394,118.65,118.59,10.06]
[1766104792778,0.05731396,118.63,118.59,10.06]
[1766104794478,6.34530394,118.67,118.6,10.06]
[1766104794679,6.34530394,118.66,118.6,10.06]
[1766104794880,6.34530394,118.67,118.6,10.06]
[1766104795076,6.34530394,118.66,118.6,10.06]
[1766104795279,13.93350394,118.67,118.6,10.06]
[1766104795479,0.0588546,118.65,118.62,0.05731396]
[1766104800687,6.34674036,118.67,118.62,10.11731396]
[1766104801186,6.34674036,118.66,118.62,10.11731396]
[1766104801381,6.34674036,118.67,118.62,10.11731396]
[1766104801588,6.34674036,118.66,118.62,10.11731396]
[1766104801790,0.05505371,118.66,118.62,10.11731396]
[1766104801990,6.40179407,118.66,118.62,10.11731396]
[1766104802192,0.05505371,118.66,118.62,10.11731396]
[1766104802390,6.40179407,118.66,118.62,10.11731396]
[1766104802583,0.05505371,118.66,118.62,17.70861396]
[1766104802783,6.40179407,118.66,118.62,17.70861396]
[1766104802983,0.05505371,118.66,118.62,17.70861396]
[1766104803183,6.40179407,118.66,118.62,17.70861396]
[1766104803385,0.05505371,118.66,118.62,17.70861396]
[1766104803587,6.40179407,118.66,118.62,17.70861396]
[1766104803787,0.05505371,118.66,118.62,17.70861396]
[1766104804081,6.40179407,118.66,118.62,17.70861396]
[1766104804281,0.05505371,118.66,118.62,17.70861396]
[1766104804488,6.40179407,118.66,118.62,17.70861396]
[1766104804687,0.05505371,118.66,118.62,17.70861396]
[1766104804887,6.40179407,118.66,118.62,17.70861396]
[1766104805095,0.05505371,118.66,118.62,17.70861396]
[1766104805394,6.40179407,118.66,118.62,17.70861396]
[1766104805594,0.05505371,118.66,118.62,17.70861396]
[1766104805889,6.40179407,118.66,118.62,17.70861396]
[1766104806195,10.02,118.63,118.54,118.1641]
[1766104806493,16.36674036,118.64,118.56,1.46748756]
[1766104806694,6.34674036,118.63,118.56,1.46748756]
[1766104807295,0.06228443,118.61,118.58,0.05763563]
[1766104809199,10.08228443,118.61,118.58,0.05763563]
[1766104810090,17.67438443,118.61,118.58,0.05763563]
[1766104811490,10.08228443,118.61,118.58,0.05763563]
[1766104812798,0.06228443,118.61,118.58,0.05763563]
[1766104814489,10.78,118.57,118.49,10.11]
[1766104814898,10.78,118.56,118.49,10.11]
[1766104815296,10.78,118.56,118.44,172.4462]
[1766104815297,10.78,118.54,118.47,10.11]
[1766104815496,0.06058579,118.52,118.47,10.11]
[1766104817605,0.06058579,118.52,118.45,10.11]
[1766104817801,0.05414598,118.5,118.45,10.11]
[1766104818311,0.05414598,118.5,118.45,17.7119]
[1766104818608,0.05414598,118.5,118.46,10.11]
[1766104819007,0.05414598,118.5,118.46,64.31]
[1766104819511,0.05414598,118.5,118.46,10.11]
[1766104820795,0.05414598,118.5,118.44,10.11]
[1766104821609,10.78,118.47,118.37,10.11]
[1766104821919,0.05857337,118.43,118.37,10.11]
[1766104823908,18.44237337,118.43,118.34,10.11]
[1766104824216,0.00200109,118.4,118.37,10.11]
[1766104824510,13.52110963,118.45,118.37,10.11]
[1766104825417,0.05717666,118.42,118.4,0.0619556]
[1766104825812,0.05717666,118.42,118.4,0.0019556]
[1766104826011,10.83717666,118.42,118.35,64.31]
[1766104826714,2.74110963,118.41,118.33,10.11]
[1766104826915,10.78,118.42,118.35,10.11]
[1766104827115,0.06269882,118.4,118.35,10.11]
[1766104830011,10.84269882,118.4,118.33,10.11]
[1766104830210,10.84269882,118.4,118.3,122.68974859]
[1766104830211,10.78,118.38,118.3,10.11]
[1766104830517,10.78,118.29,118.22,10.11]
[1766104830715,4.28384859,118.25,118.17,172.7556]
[1766104830915,0.05699242,118.22,118.17,64.33]
[1766104831517,10.78,118.27,118.18,10.11]
[1766104831717,10.64080281,118.28,118.18,10.11]
[1766104831718,10.78,118.3,118.21,128.6079]
[1766104832116,10.78,118.3,118.22,64.33]
[1766104832526,0.05470566,118.27,118.25,0.05511653]
[1766104833532,129.1674,118.33,118.25,0.05511653]
[1766104833830,129.1674,118.33,118.23,10.11]
[1766104834031,10.78,118.26,118.17,10.11]
[1766104834427,10.78,118.29,118.2,10.11]
[1766104834620,0.06059398,118.26,118.23,0.06196468]
[1766104835327,10.78,118.32,118.23,10.17196468]
[1766104835529,10.78,118.32,118.23,10.11]
[1766104836019,10.78,118.31,118.23,10.11]
[1766104836328,0.06409478,118.28,118.26,0.05972157]
[1766104836828,10.78,118.25,118.16,1.4722992]
[1766104837130,10.78,118.24,118.16,10.11]
[1766104837324,129.229,118.26,118.16,10.11]
[1766104837524,7.6155,118.25,118.16,10.11]
[1766104837734,0.05895904,118.22,118.19,0.05737618]
[1766104839020,7.6139,118.27,118.19,10.16737618]
[1766104839223,129.2188,118.27,118.19,10.11]
[1766104840121,0.06383646,118.24,118.22,0.06144619]
[1766104840626,0.06383646,118.24,118.19,10.11]
[1766104840929,0.06383646,118.24,118.17,54.26]
[1766104841231,0.06383646,118.24,118.17,64.37]
[1766104841629,0.06383646,118.24,118.19,0.05333949]
[1766104841833,0.06383646,118.24,118.19,10.16333949]
[1766104842034,10.78,118.3,118.19,10.16333949]
[1766104842225,64.98,118.29,118.2,10.11]
[1766104842426,10.78,118.29,118.2,10.11]
[1766104842928,0.00346624,118.26,118.23,0.06422145]
[1766104843128,118.4005,118.31,118.22,65.14]
[1766104843432,118.4005,118.31,118.23,10.88]
[1766104843827,9.82,118.32,118.23,10.88]
[1766104844026,9.82,118.35,118.27,10.88]
[1766104844334,9.82,118.35,118.27,65.14]
[1766104845225,0.06141003,118.32,118.3,0.05520221]
[1766104845620,128.1526,118.38,118.3,0.05520221]
[1766104845822,10.97661138,118.41,118.3,10.88]
[1766104846028,9.82,118.44,118.32,10.88]
[1766104846220,9.82,118.44,118.34,10.88]
[1766104846626,0.05776931,118.4,118.38,0.05596193]
[1766104847431,128.0888,118.44,118.38,0.05596193]
[1766104847633,9.82,118.43,118.38,0.05596193]
[1766104847838,17.4239,118.43,118.38,0.05596193]
[1766104848338,9.82,118.43,118.38,0.05596193]
[1766104848540,0.05934325,118.42,118.38,0.05596193]
[1766104852049,9.87934325,118.42,118.38,0.05596193]
[1766104854048,17.48374325,118.42,118.38,0.05596193]
[1766104855951,0.05934325,118.42,118.38,0.05596193]
[1766104861753,13.88327571,118.47,118.38,10.93596193]
[1766104862054,7.6015,118.47,118.38,10.88]
[1766104862252,24.50327571,118.47,118.38,10.88]
[1766104862448,18.2215,118.47,118.38,10.88]
[1766104862654,0.05481181,118.44,118.41,0.05537928]
[1766104864860,0.05481181,118.44,118.41,7.66017928]
[1766104865361,0.05481181,118.44,118.38,9.86]
[1766104866256,10.62,118.41,118.32,9.86]
[1766104866555,0.05738215,118.38,118.35,0.06321765]
[1766104867666,10.62,118.41,118.35,0.06321765]
[1766104868168,7.6062,118.39,118.35,0.06321765]
[1766104868667,0.05594854,118.38,118.35,0.06321765]
[1766104873967,10.62,118.41,118.35,7.67181765]
[1766104874966,0.06336414,118.39,118.35,7.67181765]
[1766104876673,0.06336414,118.39,118.36,7.6077]
[1766104878370,0.06336414,118.39,118.35,0.06321765]
[1766104879269,10.15336414,118.39,118.35,0.06321765]
[1766104881366,17.75966414,118.39,118.35,0.00321765]
[1766104881578,10.15336414,118.39,118.35,0.00321765]
[1766104882575,10.09,118.37,118.35,0.00321765]
[1766104885694,0.06336414,118.39,118.35,0.00321765]
[1766104887288,6.22704972,118.38,118.35,0.00321765]
[1766104887582,6.29041386,118.39,118.35,0.00321765]
[1766104887776,6.22704972,118.38,118.35,0.00321765]
[1766104888583,0.06336414,118.39,118.35,0.00321765]
[1766104889176,6.29041386,118.39,118.35,0.00321765]
[1766104889375,16.38041386,118.39,118.35,0.00321765]
[1766104891383,10.15336414,118.39,118.35,0.00321765]
[1766104898692,0.06336414,118.39,118.35,0.00321765]
[1766104899189,0.06336414,118.39,118.35,10.10321765]
[1766104899388,0.06336414,118.39,118.36,7.608]
[1766104899588,10.09,118.42,118.36,12.84194127]
[1766104900586,0.0534602,118.4,118.38,7.66970057]
[1766104901988,10.09,118.42,118.38,7.66970057]
[1766104902293,10.09,118.44,118.38,10.16330057]
[1766104902588,9.56,118.46,118.38,10.16330057]
[1766104902790,9.56,118.46,118.38,10.1]
[1766104902989,0.05770622,118.43,118.41,0.06068281]
[1766104906587,0.05770622,118.43,118.41,7.66548281]
[1766104909084,9.56,118.46,118.41,7.66548281]
[1766104910191,0.05617615,118.45,118.41,7.66548281]
[1766104911494,9.56,118.43,118.36,10.29]
[1766104911892,9.56,118.41,118.33,10.29]
[1766104912289,9.56,118.39,118.32,54.06]
[1766104912493,0.06272543,118.37,118.34,0.05496948]
[1766104914697,17.23032543,118.37,118.34,0.00496948]
[1766104914898,9.62272543,118.37,118.34,0.00496948]
[1766104918503,9.56,118.36,118.27,17.9034]
[1766104918705,9.56,118.36,118.28,10.29]
[1766104918897,17.1686,118.36,118.28,10.29]
[1766104919201,9.56,118.36,118.28,10.29]
[1766104919404,0.06022019,118.33,118.31,0.06497073]
[1766104921191,0.06022019,118.33,118.31,0.00497073]
[1766104924999,10.0,118.37,118.31,0.00497073]
[1766104926201,0.05390995,118.35,118.31,0.00497073]
[1766104927203,10.05390995,118.35,118.31,0.00497073]
[1766104927403,12.79804727,118.35,118.31,0.00497073]
[1766104927903,0.05390995,118.35,118.31,0.00497073]
[1766104928093,0.05390995,118.35,118.31,10.18497073]
[1766104928603,0.05390995,118.35,118.31,12.92910805]
[1766104929211,0.05390995,118.35,118.31,0.00497073]
[1766104929409,10.05390995,118.35,118.31,0.00497073]
[1766104936005,0.05390995,118.35,118.31,7.61617073]
[1766104936215,0.05390995,118.35,118.31,17.03617073]
[1766104940617,0.05390995,118.35,118.31,7.61617073]
[1766104942419,0.05390995,118.35,118.31,0.00497073]
[1766104944914,0.05390995,118.35,118.31,7.61627073]
[1766104945118,0.05390995,118.35,118.31,17.03627073]
[1766104947316,0.05390995,118.35,118.3,56.76413732]
[1766104947317,17.8595,118.34,118.28,17.0331]
[1766104947518,10.25,118.34,118.28,9.42]
[1766104947820,10.25,118.36,118.28,9.42]
[1766104948019,10.25,118.36,118.3,9.42]
[1766104948523,0.05709349,118.34,118.32,0.0551776]
[1766104951027,10.30709349,118.34,118.26,9.42]
[1766104951327,10.25,118.34,118.26,9.42]
[1766104951523,10.25,118.33,118.26,9.42]
[1766104951827,7.6109,118.32,118.26,17.0345]
[1766104952023,0.06027995,118.3,118.28,0.05662671]
[1766104954022,0.06027995,118.3,118.22,143.7758]
[1766104954023,7.6132,118.28,118.22,17.0367]
[1766104954217,10.25,118.27,118.16,118.5483]
[1766104954422,10.25,118.26,118.17,4.28724048]
[1766104954621,17.865,118.26,118.17,4.28724048]
[1766104955024,0.05936659,118.23,118.2,0.06249509]
[1766104961530,10.25,118.26,118.2,9.48249509]
[1766104961837,10.25,118.32,118.25,13.70724048]
[1766104962435,0.06212226,118.3,118.27,0.05990204]
[1766104962735,9.24,118.34,118.27,9.49990204]
[1766104962941,9.24,118.34,118.27,9.44]
[1766104963631,9.24,118.37,118.28,9.44]
[1766104963827,0.05611788,118.34,118.31,0.06329102]
[1766104967034,0.05611788,118.34,118.28,7.6127]